Cogmind - Beta 9.2 @@@ ROGUE MODE // 2019.12.08 @ 19:48:33 Player: Demise Result: Destroyed by as-72906 with Assembled Heavy Rifle Performance ------------- Evolutions (0) 0 Regions Visited (4) 800 Robots Destroyed (26) 130 Value Destroyed (343) 343 Prototype IDs (22) 440 Alien Tech Used (0) 0 Bonus (300) 300 TOTAL SCORE: 2013 Bonus ------- Aligned with FarCom 300 Cogmind --------- Core Integrity 0/250 Matter 300/300 Energy 95/100 System Corruption 0% Temperature Cool (0) Movement Rolling (80) Location -9/Mines Parts ------- > --- POWER (1) -------- (None) > --- PROPULSION (2) --- Wheel Wheel > --- UTILITY (2) ------ Large Storage Unit Armor Integrity Analyzer > --- WEAPON (2) ------- Longsword +1 > --- INVENTORY (10) --- Large Storage Unit Large Storage Unit Large Battery (300) Improved Terrain Scanner Seismic Analyzer Targeting Computer Mining Laser Stasis Trap (100%) Stasis Trap (100%) Stasis Trap (100%) Peak State ------------ > --- POWER ------------ (None) > --- PROPULSION ------- Wheel Flight Unit > --- UTILITY ---------- Large Storage Unit Armor Integrity Analyzer > --- WEAPON ----------- Longsword +1 > --- INVENTORY -------- Large Storage Unit Large Storage Unit Large Battery Improved Terrain Scanner Seismic Analyzer Seismic Analyzer Targeting Computer Mining Laser Stasis Trap [Rating: 14] Favorites ----------- Power Ion Engine Engine Ion Engine Propulsion Wheel Leg Aluminum Leg Wheel Wheel Flight Unit Flight Unit Utility Armor Integrity Analyzer Device Improved Terrain Scanner Storage Large Storage Unit Processor Armor Integrity Analyzer Weapon Assault Rifle Ballistic Gun Assault Rifle Launcher Rocket Launcher Slashing Weapon Longsword +1 Build | -11 -10 -10 -10 -9 ------- Run | Scr Mat Min Exi Min Slots Evolved . | . . . . . Power . | . . . . . Propulsion . | . . . . . Utility . | . . . . . Weapon . | . . . . . Parts Attached 22 | 7 4 7 2 2 Power 2 | 1 . 1 . . Engine 2 | 1 . 1 . . Core . | . . . . . Reactor . | . . . . . Propulsion 10 | 3 1 4 . 2 Treads . | . . . . . Leg 2 | . 1 1 . . Wheel 5 | 3 . . . 2 Hover . | . . . . . Flight 3 | . . 3 . . Utility 4 | 1 2 . 1 . Device 1 | 1 . . . . Storage 2 | . 1 . 1 . Processor 1 | . 1 . . . Hackware . | . . . . . Protection . | . . . . . Artifact . | . . . . . Weapon 6 | 2 1 2 1 . Energy Gun . | . . . . . Energy Cannon . | . . . . . Ballistic Gun 3 | 2 1 . . . Ballistic Cannon . | . . . . . Launcher 2 | . . 2 . . Special Weapon . | . . . . . Impact Weapon . | . . . . . Slashing Weapon 1 | . . . 1 . Piercing Weapon . | . . . . . Special Melee Weapon . | . . . . . Unidentified Prototypes . | . . . . . Parts Lost 10 | . 4 6 . . Power 2 | . 1 1 . . Propulsion 5 | . 2 3 . . Utility . | . . . . . Weapon 3 | . 1 2 . . Highest Loss Streak 3 | . 3 3 . . Average Slot Usage (%) 65 | . 95 55 47 64 Engine 3 | . 14 . . . Leg 2 | . 2 8 . . Wheel 8 | . 23 . . 8 Flight 9 | . . 7 14 13 Storage 12 | . 12 13 8 14 Processor 13 | . 13 14 14 14 Ballistic Gun 6 | . 26 1 . . Launcher 2 | . . 8 . . Slashing Weapon 6 | . . . 10 14 Naked Turns . | . . . . . Heaviest Build 25 | 10 25 20 19 19 Greatest Support 26 | 26 20 10 4 20 Greatest Overweight (x) 8 | . 8 6 4 4 Average Overweight (x) . | . 1 . . 1 Largest Inventory Capacity 10 | 4 10 10 10 10 Average Capacity 8 | 4 9 9 7 10 Most Carried 10 | 4 10 10 6 10 Average Carried 7 | 3 8 9 5 8 Final Capacity 10 | 4 10 4 10 10 Final Carried 10 | 4 10 4 6 10 Class Distribution -------------------- 100% | Mutant Dominant Class ---------------- Mutant | -10/Materials Mutant | -10/Mines Mutant | -10/Exiles Mutant | -9/Mines Resources | -11 -10 -10 -10 -9 ----------- Run | Scr Mat Min Exi Min Matter Collected 734 | 372 211 53 . 98 Remotely . | . . . . . Salvage Created 657 | 231 189 97 . 140 Parts 39 | 13 10 13 . 3 Haulers Intercepted . | . . . . . Recyclers Shooed . | . . . . . Parts Field Recycled . | . . . . . Retrieved Matter . | . . . . . Parts Self-Destructed . | . . . . . Prevented . | . . . . . Kills | -11 -10 -10 -10 -9 ------- Run | Scr Mat Min Exi Min Combat Hostiles Destroyed 13 | . 4 5 . 4 Melee 4 | . . . . 4 Guns 4 | . 4 . . . AOE 5 | . . 5 . . Classes Destroyed 6 | 3 1 1 . 1 Worker 5 | 2 . 1 . 2 Tunneler 7 | 5 . . . 2 Recycler 1 | 1 . . . . Swarmer 3 | . . 3 . . Grunt 6 | . 4 2 . . Assembled 4 | . . . . 4 Best Kill Streak 5 | 5 2 3 . 4 Combat Bots Only 4 | . 2 3 . 4 Max Kills in Single Turn 3 | 1 1 3 . 1 Gunslinging . | . . . . . Exploded 3 | . . 3 . . Melee 1 | . . . . 1 Uniques/NPCs Destroyed . | . . . . . Combat | -11 -10 -10 -10 -9 -------- Run | Scr Mat Min Exi Min Damage Taken 951 | . 520 380 . 51 Core 265 | . 79 168 . 18 Absorbed by Shields . | . . . . . Core Remaining (%) 100 | 100 . . . . Volleys Fired 51 | 17 21 13 . . Largest 2 | 2 2 1 . . Hottest 40 | 40 40 33 . . Shots Fired 89 | 34 42 13 . . Gun 85 | 34 42 9 . . Cannon . | . . . . . Launcher 4 | . . 4 . . Special . | . . . . . Kinetic 85 | 34 42 9 . . Thermal . | . . . . . Explosive 4 | . . 4 . . Electromagnetic . | . . . . . Robot Hit Streak 10 | 4 10 8 . . Robot Miss Streak 3 | 3 3 2 . . Penetration Max . | . . . . . Secondary Targets . | . . . . . Shots Hit Robots 69 | 17 30 9 . 13 Core Hits 33 | 9 9 8 . 7 Critical Hits . | . . . . . Critical Kills . | . . . . . Critical Parts Destroyed . | . . . . . Melee Attacks 19 | . . . . 19 Impact . | . . . . . Slashing 19 | . . . . 19 Piercing . | . . . . . Sneak Attacks 5 | . . . . 5 Combat Hostiles 1 | . . . . 1 Follow-up Attacks . | . . . . . Damage Inflicted 2138 | 272 411 358 . 1097 Guns 783 | 272 411 100 . . Cannons . | . . . . . Explosions 258 | . . 258 . . Melee 1097 | . . . . 1097 Ramming . | . . . . . Kinetic 783 | 272 411 100 . . Thermal . | . . . . . Explosive 258 | . . 258 . . Electromagnetic . | . . . . . Impact . | . . . . . Slashing 1097 | . . . . 1097 Piercing . | . . . . . Highest Corruption . | . . . . . Average Corruption . | . . . . . Corruption Purged . | . . . . . Overload Shots . | . . . . . Overflow Damage 374 | . . 12 . 362 Projectiles . | . . . . . Explosions 12 | . . 12 . . Melee 362 | . . . . 362 Knockbacks . | . . . . . Impact . | . . . . . Kinetic . | . . . . . Secondary . | . . . . . Self-Inflicted Damage 135 | . . 135 . . Shots 4 | . . 4 . . Rammed . | . . . . . Targets Rammed . | . . . . . Kicked . | . . . . . Crushed . | . . . . . Highest Temperature 14 | . 14 11 . . Average Temperature 6 | . 6 6 . . Received Heat Transfer 375 | . 291 84 . . Siege Activations . | . . . . . Robots Corrupted . | . . . . . Combat Hostiles . | . . . . . Parts Fried . | . . . . . Impact Corruptions . | . . . . . Robots Melted . | . . . . . Combat Hostiles . | . . . . . Parts Melted . | . . . . . Heat Transferred . | . . . . . Parts Sabotaged . | . . . . . Parts Stolen . | . . . . . Parts Stripped . | . . . . . Power Chain Reactions . | . . . . . Missiles Intercepted . | . . . . . Alert | -11 -10 -10 -10 -9 ------- Run | Scr Mat Min Exi Min Peak Influence 146 | 40 124 146 . 20 Average Influence 45 | 18 62 90 . 12 Maximum Alert Level . | . . . . . Low Security (%) 100 | 100 100 100 . 100 Level 1 . | . . . . . Level 2 . | . . . . . Level 3 . | . . . . . Level 4 . | . . . . . Level 5 . | . . . . . High Security . | . . . . . Max Security . | . . . . . Squads Dispatched . | . . . . . Investigation . | . . . . . Extermination . | . . . . . Reinforcement . | . . . . . Assault . | . . . . . Garrison . | . . . . . Intercept . | . . . . . Construction Impeded . | . . . . . Haulers Reinforced . | . . . . . Stealth | -11 -10 -10 -10 -9 --------- Run | Scr Mat Min Exi Min Distress Signals 2 | . 2 . . . Communications Jammed . | . . . . . Distress Signals . | . . . . . Times Spotted 20 | . 7 8 . 5 Peak Tracking Total 5 | . 5 3 . 3 Tactical Retreats 1 | . 1 . . . Traps | -11 -10 -10 -10 -9 ------- Run | Scr Mat Min Exi Min Traps Triggered . | . . . . . Indirectly . | . . . . . Trap Hack Attempts . | . . . . . Triggered . | . . . . . Disarmed . | . . . . . Reprogrammed . | . . . . . Reused . | . . . . . Traps Extracted . | . . . . . Installed . | . . . . . Triggered . | . . . . . Machines | -11 -10 -10 -10 -9 ---------- Run | Scr Mat Min Exi Min Machines Disabled 1 | . . 1 . . Max in Single Turn 1 | . . 1 . . Machines Sabotaged . | . . . . . Garrisons Compromised . | . . . . . Overloaded Fab Kills . | . . . . . Fab Network Shutdowns . | . . . . . Hacking | -11 -10 -10 -10 -9 --------- Run | Scr Mat Min Exi Min Machines Accessed 4 | . 2 1 1 . Terminals 3 | . 2 1 . . Fabricators . | . . . . . Repair Stations . | . . . . . Recycling Units . | . . . . . Scanalyzers . | . . . . . Garrison Access . | . . . . . Total Hacks 9 | . 6 2 1 . Successful 5 | . 3 1 1 . Failed 4 | . 3 1 . . Catastrophic . | . . . . . Database Lockouts . | . . . . . Manual 5 | . 4 . 1 . Terminals 8 | . 6 2 . . Fabricators . | . . . . . Repair Stations . | . . . . . Recycling Units . | . . . . . Scanalyzers . | . . . . . Garrison Access . | . . . . . Terminal Hacks 3 | . 1 1 1 . Level Access Points 1 | . . 1 . . Branch Access Points 1 | . 1 . . . EX-Prototype ID Bank 1 | . . . 1 . Fabricator Hacks . | . . . . . Repair Station Hacks . | . . . . . Recycling Unit Hacks . | . . . . . Scanalyzer . | . . . . . Garrison Access Hacks . | . . . . . Unauthorized Hacks 4 | . 4 . . . Terminals 2 | . 2 . . . Botnet 2 | . 2 . . . Fabricators . | . . . . . Repair Stations . | . . . . . Recycling Units . | . . . . . Scanalyzers . | . . . . . Garrison Access . | . . . . . Data Cores Recovered . | . . . . . Used . | . . . . . Hacking Detections 3 | . 2 1 . . Full Trace Events . | . . . . . Feedback Events . | . . . . . Feedback Blocked . | . . . . . Robot Schematics Acquired . | . . . . . Robots Built . | . . . . . Matter . | . . . . . Time . | . . . . . Total Robot Build Rating . | . . . . . Part Schematics Acquired . | . . . . . Parts Built . | . . . . . Matter . | . . . . . Time . | . . . . . Total Part Build Rating . | . . . . . Parts Repaired . | . . . . . Time . | . . . . . Parts Recycled . | . . . . . Recycled Matter . | . . . . . Retrieved Matter . | . . . . . Retrieved Components . | . . . . . Parts Scanalyzed . | . . . . . Part Schematics Acquired . | . . . . . Parts Damaged . | . . . . . Bothacking | -11 -10 -10 -10 -9 ------------ Run | Scr Mat Min Exi Min Used RIF Installer . | . . . . . Robots Hacked . | . . . . . Non-combat . | . . . . . Combat . | . . . . . Robot Hacks Applied . | . . . . . Relay Couplers Released . | . . . . . Robots Rewired . | . . . . . Allies Hacked . | . . . . . Hacks Repelled . | . . . . . Allies | -11 -10 -10 -10 -9 -------- Run | Scr Mat Min Exi Min Total Allies . | . . . . . Largest Group . | . . . . . Highest-Rated Group . | . . . . . Highest-Rated Ally . | . . . . . Total Orders . | . . . . . Ally Attacks . | . . . . . Total Damage . | . . . . . Kills . | . . . . . Allies Corrupted . | . . . . . Allies Melted . | . . . . . Intel | -11 -10 -10 -10 -9 ------- Run | Scr Mat Min Exi Min Robot Analysis Total . | . . . . . Derelict Logs Recovered 1 | . . . . 1 Drone Launches . | . . . . . Drone Recoveries . | . . . . . Exploration | -11 -10 -10 -10 -9 ------------- Run | Scr Mat Min Exi Min Turns Passed 1390 | 127 278 301 243 441 Spaces Moved 976 | 70 181 199 271 255 Core 13 | 5 4 4 . . Treads . | . . . . . Legs 115 | . 8 107 . . Wheels 442 | 65 169 . . 208 Hover . | . . . . . Flight 406 | . . 88 271 47 Fastest Speed 37 | 50 80 37 40 80 Average Speed 111 | 87 100 124 88 139 Slowest Speed 450 | 100 450 360 360 360 Overloaded Moves . | . . . . . Propulsion Burnouts . | . . . . . Robots Hopped . | . . . . . Cave-ins Triggered . | . . . . . Exploration Rate (%) 39 | 3 31 46 68 50 Regions Visited 4 Branch Regions 3 Pre-discovered Areas 1 | . . 1 . . Known Exits Taken 1 | . 1 . . . Unknown Exits Taken 3 | 1 . 1 1 . Scrap Searched . | . . . . . Spaces Dug 6 | . . . . 6 Terrain Destroyed 45 | . . 39 . 6 Melee 6 | . . . . 6 Projectile . | . . . . . AOE 39 | . . 39 . . Actions | -11 -10 -10 -10 -9 --------- Run | Scr Mat Min Exi Min Total 1169 | 98 236 238 276 321 Wait 69 | . 18 13 . 38 Move 972 | 69 180 198 270 255 Hop . | . . . . . Pick Up 23 | 4 9 2 3 5 Fast Attach 19 | 7 3 5 2 2 Attach 2 | . . 2 . . Detach 1 | . . 1 . . Swap 1 | . 1 . . . Drop 12 | 1 4 4 1 2 Fire 51 | 17 21 13 . . Melee 19 | . . . . 19 Ram . | . . . . . Kick . | . . . . . Crush . | . . . . . Escape Stasis . | . . . . . Rewire . | . . . . . Trap . | . . . . . Miscellaneous . | . . . . . Route ------- -11/Scrapyard -10/Materials -10/Mines (discovered 3 exits: *Mat x2 / *Exi) -10/Exiles -9/Mines History --------- Turn | Location | Event 8 | -11/Scrapyard | Discovered new exit (range 15) 128 | -11/Scrapyard | Entered Materials 213 | -10/Materials | Identified exit to Mines 302 | -10/Materials | Build established: Mutant 406 | -10/Materials | Entered Mines 437 | -10/Mines | Lost 3 parts (1p1n1w) 451 | -10/Mines | Core integrity fell below 50% 470 | -10/Mines | Identified exit to Materials 483 | -10/Mines | Lost 3 parts (1p1n1w) 499 | -10/Mines | Learned location of Storage (-9) 615 | -10/Mines | Core integrity fell below 20% 705 | -10/Mines | Deemed a non-threat by the Exiles lab entrance 706 | -10/Mines | Discovered new exit (range 5) 707 | -10/Mines | Entered Exiles 717 | -10/Exiles | Met 8R-AWN 724 | -10/Exiles | Lost 3 parts (2n1w) 724 | -10/Exiles | Met EX-HEX 742 | -10/Exiles | Met EX-DEC 749 | -10/Exiles | Met EX-BIN 754 | -10/Exiles | Aligned with FarCom system 755 | -10/Exiles | Given EX-Vault access code 764 | -10/Exiles | Opened EX-Vault 767 | -10/Exiles | Found Longsword +1 777 | -10/Exiles | Warned to stay clear of 0b10 Research branches 918 | -10/Exiles | Discovered new exit (range 10) 950 | -10/Exiles | Left Exiles lab with Longsword +1 950 | -10/Exiles | Entered Mines 965 | -9/Mines | Learned 2 Materials zone layouts 1275 | -9/Mines | Found a hidden stash of uninstalled traps 1345 | -9/Mines | Assembled infested the area 1391 | -9/Mines | Destroyed by as-72906 with Assembled Heavy Rifle Last Messages --------------- 01145_ K-01 Serf destroyed. 01147_ Acquired 16 matter. 01148_ Acquired 29 matter. 01275_ A stash of uninstalled traps is hidden here! 01280_ Acquired Stasis Trap. 01293_ Dropped Seismic Analyzer. 01294_ Acquired Stasis Trap. 01345_ ALERT: Infestation in the mines, dispatching Demolisher response squad. 01358_ Sneak attack on as-77679. 01358_ as-77679 destroyed. 01360_ as-67023 destroyed. 01362_ Destroyed Asb. Hover Unit. 01364_ as-62338 destroyed. 01366_ as-22207 destroyed. 01367_ Acquired 2 matter. 01378_ Dropped Flight Unit. 01379_ Acquired Wheel. 01380_ The unstable cave ceiling collapses. 01381_ Acquired 10 matter. 01390_ Destroyed Asb. Hover Unit. Map ----- +----------------------------------------------------+ | ?????????????????????????????????????????????????? | | ?????????????????????????????????????????????????? | | ?????????????????????????????????????????????????? | | ?????????????????????????????????????????????????? | | ?????????????????????????????????????????????????? | | ?????????????????????????????????????????????????? | | ??????????????????????? ???????????????????????? | | ??????????????????????? # ???????????????????????? | | ??????????????????????? ???????????????????????? | | ??????????????????????? ???????????????????????? | | ??????????????????????? ???????????????????????? | | ??????????????????????? ???????????????????????? | | ??????????????????????? ???????????????????????? | | ??????????????????????? ???????????????????????? | | ???????????????????????# #???????????????????????? | | ???????????????????????# #???????????????????????? | | ???????????????????????# #???????????????????????? | | ???????????????????????# #???????????????????????? | | ???????????????????????# #???????????????????????? | | ???????????????????????# #???????????????????????? | | ???????????????????????#%#???????????????????????? | | ???????????????????????# #???????????????????????? | | ???????????????????????#=#???????????????????????? | | ???????????????????????#a#???????????????????????? | | ???????????????????????#a#########???????????????? | | ???????????????????????#%@ ;##??????????????? | | ???????????????????????######## # ##?????????????? | | ??????????????????????????????# ## ##????????????? | | ??????????????????????????????# ### ##????????#### | | ??????????????????????????????# #?## ##??????## ! | | ????????????????????s?ss##????# #??##"########& & | | ????????????#?????????? #???# #???## | | ???????????? ?????s???? ??? #????# ####### | | ###????????? #????????? ???###????# #?????# | | ###???????g#????????? #??????????# #?????## | | ##?????#g#????????? #??????????# #??????### | | #?????# #?????????# #??????????# #?????????# | | ##????# #?????????# #??????????# #?????????? | | ##???# #?????????# #??????????# #?????????? | | ##??# #?????????# #??????????# #?????????? | | ### #### ###???????# #??######### #?????????? | | #?## ##??????# #??# #?????????? | | ###??## #??????# #??# #########?????????? | | ??????## #??????# #??# #?????????????????? | | ???????### ##?????# #??# #?????????????????? | | ?????????## #????## #### #??????#####??????? | | ??????????# ##???# #?????## ##?####? | | ??????????# #???# ########???### ### ## | | ??????????## #???# #?????????## # | | ???????????## ##???# #?????????# | +----------------------------------------------------+ Best States ------------- Heat Dissipation 25 Energy Generation 10 Energy Capacity 250 Matter Stores 300 Matter Capacity 300 Sight Range 16 Terrain Scan Range 16 Terrain Scan Density 10 Evasion (%) 62 Armor Integrity Analysis 33 Item Schematics ----------------- None Robot Schematics ------------------ None Fabricated ------------ Nothing Alien Tech Used ----------------- None Achievements -------------- None Challenges ------------ None Game ------ Seed DisruptionReactionDerivative Manual? 0 Play Time 00:15:01 Cumulative 135.6 hours Start 2019.12.08 @ 19:35:29 End 2019.12.08 @ 19:48:33 Sessions 1 Manual Loads 0 Difficulty Rogue Special Mode None Game No. 185 Rogue 174 Adventurer 11 Explorer 0 Win Type - Total 0 Types 0/0/0/0/0/0/0 Lore% 45 Gallery% 58 Achievement% 40 Wizard Run 0 Options --------- ASCII 0 Keyboard 1 Movement Numpad Keybinds 0 Fullscreen 1 Font 12/Terminus Map View 83x54 Tactical HUD 1 Map Filters NONE Filters NONE Steam 1 RUN: 55a96d28-cee8-43ec-9da7-5620e0f7a342